bitfinex-derivatives/quotes_ETHF0:USTF0_20230701
["timestamp","ask_amount","ask_price","bid_price","bid_amount"]
[1688170454776,8.25369,1931.6,1931.3,6.25138782]
[1688170454981,8.25369,1931.6,1931.4,3.54440627]
[1688170455176,8.25369,1931.6,1931.4,3.85512627]
[1688170455373,8.25369,1931.6,1931.4,0.33660627]
[1688170455580,8.25369,1931.6,1931.3,6.25138782]
[1688170455779,8.25369,1931.6,1931.5,0.28960276]
[1688170456477,8.25369,1931.6,1931.3,6.81887194]
[1688170456678,8.25369,1931.6,1931.4,0.28671635]
[1688170456878,8.25369,1931.6,1931.4,0.28957111]
[1688170457089,7.943,1931.5,1931.3,6.04218194]
[1688170457279,0.31072,1931.4,1931.3,9.56071194]
[1688170457572,0.31072,1931.4,1931.3,9.84742829]
[1688170457779,8.7198,1931.5,1931.3,9.95142829]
[1688170457986,0.93216,1931.6,1931.4,0.28953111]
[1688170458182,0.93216,1931.6,1931.5,4.37270047]
[1688170458485,0.93216,1931.6,1931.5,4.66221542]
[1688170458685,0.93216,1931.6,1931.5,4.0947313]
[1688170459982,0.31069,1931.6,1931.5,4.0947313]
[1688170461886,8.27869,1931.6,1931.5,0.60021495]
[1688170462089,8.27869,1931.6,1931.5,0.28951495]
[1688170464990,8.27869,1931.6,1931.5,0.60021495]
[1688170465188,8.27869,1931.6,1931.5,0.28951495]
[1688170465878,8.27869,1931.6,1931.4,0.77682]
[1688170466075,8.27473,1931.5,1931.3,8.68249782]
[1688170466378,8.27473,1931.5,1931.3,9.27993417]
[1688170467687,8.27473,1931.5,1931.4,0.31071]
[1688170472989,5.0,1931.4,1931.3,0.42159782]
[1688170473189,5.0,1931.4,1931.1,1.59161338]
[1688170473190,5.0,1931.2,1931.1,1.59161338]
[1688170473396,8.27874,1931.2,1931.1,0.31075]
[1688170473686,0.93222,1931.5,1931.1,0.31075]
[1688170473888,0.93222,1931.5,1931.4,3.51851]
[1688170474792,0.00776598,1931.7,1931.4,4.08599412]
[1688170475092,0.31067,1932.0,1931.7,0.31066]
[1688170475285,0.31067,1932.0,1931.9,3.51843]
[1688170475686,0.31067,1932.0,1931.9,3.80514635]
[1688170476085,5.38567,1932.0,1931.9,3.80514635]
[1688170476279,5.38567,1932.0,1931.9,3.51843]
[1688170476889,0.93961418,1932.1,1931.9,3.51843]
[1688170477106,0.00776418,1932.1,1932.0,0.85420047]
[1688170477287,0.00776418,1932.1,1932.0,1.16481047]
[1688170478295,0.00776418,1932.1,1932.0,6.22481047]
[1688170478492,0.31057,1932.3,1932.0,6.22481047]
[1688170478794,0.31057,1932.3,1932.2,3.51838]
[1688170478995,0.31057,1932.3,1932.2,4.37258047]
[1688170480196,0.00776297,1932.4,1932.2,9.43258047]
[1688170480495,0.00776297,1932.4,1932.3,5.06]
[1688170480698,0.00776297,1932.4,1932.3,5.37056]
[1688170482099,5.32609611,1932.8,1932.3,11.29976047]
[1688170482294,5.32609611,1932.8,1932.7,3.5183]
[1688170482493,0.08368551,1932.8,1932.7,4.37250047]
[1688170482704,5.46916551,1932.8,1932.7,3.5183]
[1688170483002,5.15868551,1932.8,1932.7,3.80501635]
[1688170483188,5.46916551,1932.8,1932.7,3.80501635]
[1688170484002,0.08368551,1932.8,1932.7,3.80501635]
[1688170484295,0.00776096,1932.9,1932.8,0.56748412]
[1688170484596,0.12638056,1932.9,1932.8,0.87796412]
[1688170486502,0.12638056,1932.9,1932.8,5.95296412]
[1688170486900,0.31042,1933.2,1932.8,5.95296412]
[1688170487107,0.31042,1933.2,1933.1,3.2078]
[1688170487302,0.31042,1933.2,1933.1,4.37244047]
[1688170487499,5.84104,1933.3,1933.1,4.37244047]
[1688170487706,0.31042,1933.2,1933.1,4.37244047]
[1688170490006,0.37640403,1933.2,1933.1,4.37244047]
[1688170490203,0.06598403,1933.2,1933.1,4.37244047]
[1688170490804,0.37639403,1933.2,1933.1,4.37244047]
[1688170491908,0.06598403,1933.2,1933.1,4.37244047]
[1688170492102,0.06598403,1933.2,1933.1,9.44744047]
[1688170492302,0.3104,1933.3,1933.1,9.44744047]
[1688170492501,0.3104,1933.3,1933.2,5.06]
[1688170492702,0.3104,1933.3,1933.2,5.37042]
[1688170493206,0.3104,1933.3,1933.2,0.31042]
[1688170497808,0.3104,1933.3,1933.2,5.38542]
[1688170498112,0.78381916,1933.4,1933.2,5.38542]
[1688170498303,0.78381916,1933.4,1933.3,4.06200047]
[1688170498503,0.78381916,1933.4,1933.3,4.37240047]
[1688170499006,0.77594,1933.8,1933.3,9.43240047]
[1688170499207,0.31032,1933.9,1933.7,8.2678]
[1688170499511,0.93093,1934.0,1933.8,6.20452047]
[1688170499702,0.3103,1934.3,1934.0,0.31029]
[1688170499899,6.06544,1934.4,1934.2,3.2078]
[1688170500108,0.00775534,1934.3,1934.2,3.98342]
[1688170500505,0.00775534,1934.3,1934.2,9.91262047]
[1688170501613,0.31800534,1934.3,1934.2,3.98342]
[1688170501915,0.31800534,1934.3,1934.2,3.2078]
[1688170501916,5.38300534,1934.3,1934.2,3.2078]
[1688170502130,5.38300534,1934.3,1934.2,0.31027]
[1688170502131,5.38500534,1934.3,1934.2,0.31027]
[1688170502312,5.071,1934.2,1934.1,0.00775474]
[1688170502506,10.43327,1934.2,1934.1,0.00775474]
[1688170502813,10.67561334,1934.2,1934.1,0.00775474]
[1688170506612,5.62361334,1934.2,1934.1,0.00775474]
[1688170507115,5.62361334,1934.2,1934.1,0.29447109]
[1688170507316,5.62361334,1934.2,1934.1,0.00775474]
[1688170507515,5.62361334,1934.2,1934.0,0.3103]
[1688170507814,5.62361334,1934.2,1933.7,5.85075]
[1688170507815,5.0,1933.9,1933.7,0.31034]
[1688170508009,5.59139465,1933.8,1933.7,0.59705635]
[1688170508717,5.59139465,1933.8,1933.7,0.31034]
[1688170508915,5.59139465,1933.8,1933.6,0.78365695]
[1688170509717,13.2748,1933.7,1933.2,0.93127]
[1688170509917,5.075,1933.4,1933.3,0.31041]
[1688170510215,5.3854,1933.4,1933.3,0.31041]
[1688170514926,0.3104,1933.4,1933.3,0.59712635]
[1688170517529,0.3104,1933.4,1933.3,3.80492635]
[1688170518429,0.3104,1933.4,1933.3,3.2078]
[1688170518626,5.3854,1933.4,1933.2,0.93902855]
[1688170519522,5.3854,1933.4,1933.2,1.2257449]
[1688170521027,6.0062,1933.6,1933.3,3.77528412]
[1688170521325,0.9312,1933.6,1933.5,3.2078]
[1688170521632,0.9312,1933.6,1933.5,3.51817]
[1688170523135,0.9312,1933.6,1933.5,4.08565412]
[1688170523533,0.77593,1933.8,1933.5,9.16065412]
[1688170523830,5.85082,1933.9,1933.7,3.3108]
[1688170524030,5.85082,1933.9,1933.8,0.87780412]
[1688170524229,5.85082,1933.9,1933.8,1.16452047]
[1688170528330,7.22870494,1934.0,1933.8,1.26752047]
[1688170528539,7.22870494,1934.0,1933.9,3.2078]
[1688170528732,6.91839494,1934.2,1933.9,8.68111]
[1688170528929,5.99061444,1934.2,1934.1,8.3858]
[1688170529131,5.99836978,1934.3,1934.1,8.69608]
[1688170529436,6.30861978,1934.3,1934.2,0.85420047]
[1688170529734,6.30861978,1934.3,1934.2,1.16446047]
[1688170530528,6.30862978,1934.3,1934.2,1.16446047]
[1688170532034,0.31801534,1934.3,1934.2,1.16446047]
[1688170532234,6.3830919,1934.3,1934.2,1.16446047]
[1688170532434,7.3108724,1934.3,1934.2,1.16446047]
[1688170533032,7.54696161,1934.3,1934.2,1.16446047]
[1688170533434,7.54696161,1934.3,1934.2,0.31026]
[1688170534844,7.54696161,1934.3,1934.2,0.59697635]
[1688170535443,7.54696161,1934.3,1934.2,0.31026]
[1688170536641,7.54696161,1934.3,1934.2,0.59697635]
[1688170537938,6.61918111,1934.3,1934.2,0.59697635]
[1688170538535,6.30892111,1934.3,1934.2,0.69997635]
[1688170538741,0.9277805,1934.4,1934.2,5.77497635]
[1688170538941,6.0637457,1934.6,1934.3,8.93828412]
[1688170539146,6.0637457,1934.6,1934.5,8.2828]
[1688170539339,6.0637457,1934.6,1934.5,8.59302]
[1688170539638,6.0637457,1934.6,1934.5,9.16050412]
[1688170539844,6.0637457,1934.6,1934.5,9.26350412]
[1688170540044,0.00775374,1934.7,1934.6,0.103]
[1688170540242,6.0637457,1935.0,1934.8,0.103]
[1688170540449,12.79587977,1935.2,1934.9,8.57795]
[1688170540741,12.79587977,1935.2,1935.1,3.2078]
[1688170540742,6.3738557,1935.2,1935.1,3.2078]
[1688170540948,6.3738557,1935.2,1935.1,3.51792]
[1688170541244,6.3738557,1935.2,1935.1,0.31012]
[1688170541834,11.84489606,1935.2,1935.1,0.31012]
[1688170542047,6.70942361,1935.2,1934.9,0.77531]
[1688170542343,5.075,1935.0,1934.9,0.77531]
[1688170542539,5.38514,1935.0,1934.9,0.77531]
[1688170542840,5.38514,1935.0,1934.9,4.26982635]
[1688170545045,5.075,1935.0,1934.9,4.26982635]
[1688170545242,12.06059042,1935.2,1934.9,9.34482635]
[1688170545450,12.06059042,1935.2,1935.0,5.64248412]
[1688170545451,6.98559042,1935.2,1935.0,5.64248412]
[1688170545651,13.72547583,1935.3,1935.1,0.59683635]
[1688170545944,7.30343176,1935.3,1935.1,0.59683635]
[1688170546149,7.7195169,1935.3,1935.1,0.59683635]
[1688170546340,0.44397793,1935.2,1935.1,0.59683635]
[1688170546545,0.44397793,1935.2,1935.1,3.80463635]
[1688170547245,0.44397793,1935.2,1935.1,8.94763635]
[1688170559651,0.4112628,1935.5,1935.2,0.56748412]
[1688170559857,4.9745,1935.8,1935.4,8.2478]
[1688170560158,4.9745,1935.8,1935.7,5.06]
[1688170560360,5.28451,1935.8,1935.7,5.65673635]
[1688170560660,5.75971,1935.9,1935.7,5.65673635]
[1688170560863,5.75971,1935.9,1935.7,6.22422047]
[1688170561059,6.16937481,1935.9,1935.7,6.22422047]
[1688170561453,1.18467481,1935.9,1935.7,6.22422047]
[1688170565276,1.18467481,1935.9,1935.7,5.37002]
[1688170566274,7.24199198,1935.9,1935.7,5.37002]
[1688170566575,1.18467481,1935.9,1935.7,5.37002]
[1688170567069,1.18467481,1935.9,1935.7,5.65673635]
[1688170567375,0.4910781,1935.8,1935.7,5.65673635]
[1688170567669,0.31001,1935.8,1935.7,5.65673635]
[1688170567866,0.80110592,1935.8,1935.7,5.65673635]
[1688170570872,0.80110592,1935.8,1935.7,3.85373635]
[1688170572078,0.80110592,1935.8,1935.7,0.59673635]
[1688170573877,4.05810592,1935.8,1935.6,0.00774873]
[1688170574178,3.226,1935.7,1935.6,0.00774873]
[1688170574374,3.96778313,1935.7,1935.6,0.00774873]
[1688170574579,10.0251003,1935.7,1935.6,0.00774873]
[1688170575378,10.95339769,1935.7,1935.6,0.00774873]
[1688170577180,14.83601459,1935.7,1935.6,0.00774873]
[1688170577777,8.10388052,1935.7,1935.6,0.00774873]
[1688170577984,7.17558313,1935.7,1935.6,0.00774873]
[1688170579275,7.17558313,1935.7,1935.2,0.72761972]
[1688170579479,9.27264186,1935.4,1935.2,0.3101]
[1688170579677,0.31009,1935.3,1935.1,3.257]
[1688170579881,0.31009,1935.3,1934.9,4.03229]
[1688170579882,3.97120189,1935.3,1934.9,4.03229]
[1688170580077,3.97120189,1935.3,1935.0,0.31013]
[1688170580282,10.01784375,1935.3,1935.0,0.31013]
[1688170580579,0.31012,1935.1,1935.0,0.31013]
[1688170581482,0.31012,1935.1,1935.0,0.59684635]
[1688170582078,0.31012,1935.1,1935.0,3.85384635]
[1688170582585,6.35676186,1935.1,1935.0,3.85384635]
[1688170584384,0.31012,1935.1,1935.0,3.85384635]
[1688170584779,7.04847586,1935.1,1935.0,3.85384635]
[1688170585989,7.04847586,1935.1,1935.0,3.56713]
[1688170587083,0.31012,1935.1,1935.0,3.56713]
[1688170587290,0.31012,1935.1,1935.0,3.85384635]
[1688170587688,7.04803591,1935.1,1935.0,3.85384635]
[1688170588289,0.31012,1935.1,1935.0,3.85384635]
[1688170589081,7.04916586,1935.1,1935.0,3.95684635]
[1688170589285,6.73904586,1935.1,1935.0,3.95684635]
[1688170589686,6.73904586,1935.2,1935.0,3.95684635]
[1688170589983,6.73904586,1935.2,1935.1,7.44540412]
[1688170590193,0.40411189,1935.3,1935.2,0.59682635]
[1688170590379,0.40411189,1935.3,1935.2,3.56711]
[1688170590786,6.74034324,1935.4,1935.3,0.103]
[1688170590983,6.74034324,1935.4,1935.3,7.44537412]
[1688170592987,7.08771526,1935.4,1935.3,7.44537412]
[1688170593384,0.77513,1935.8,1935.3,7.44537412]
[1688170593588,0.77513,1935.8,1935.7,3.257]
[1688170593790,0.77513,1935.8,1935.7,4.42122047]
[1688170594484,0.72982316,1935.8,1935.7,4.42122047]
[1688170595281,0.41981316,1935.8,1935.7,4.52422047]
[1688170595694,0.31511199,1936.0,1935.7,4.52422047]
[1688170595887,0.31511199,1936.0,1935.9,6.4648]
[1688170596092,0.31511199,1936.0,1935.9,7.62899047]
[1688170597994,0.72092845,1936.0,1935.9,7.62899047]
[1688170598193,0.31511199,1936.0,1935.9,7.62899047]
[1688170598999,0.00513199,1936.0,1935.9,7.62899047]
[1688170599593,0.31511199,1936.0,1935.9,7.62899047]
[1688170601000,0.54592876,1936.0,1935.9,7.62899047]
[1688170601298,0.54592876,1936.0,1935.8,3.257]
[1688170601489,0.54592876,1936.0,1935.9,0.30997]
[1688170601886,0.54589876,1936.0,1935.9,0.59668635]
[1688170602090,0.54589876,1936.0,1935.9,3.85368635]
[1688170603295,0.54589876,1936.0,1935.9,3.56697]
[1688170603498,0.54589876,1936.0,1935.9,0.30997]
[1688170603499,3.80289876,1936.0,1935.9,0.30997]
[1688170604701,3.79689876,1936.0,1935.9,0.30997]
[1688170605498,3.79689876,1936.0,1935.8,0.77493]
[1688170605696,6.4648,1935.9,1935.4,14.58413]
[1688170605897,3.226,1935.6,1935.4,0.31007]
[1688170606102,3.226,1935.6,1935.3,4.29054]
[1688170606103,0.31006,1935.5,1935.3,4.29054]
[1688170606298,0.31006,1935.5,1935.3,4.57725635]
[1688170609895,0.31006,1935.5,1935.4,0.56748412]
[1688170610095,0.31006,1935.5,1935.4,0.87755412]
[1688170610299,0.77515,1935.6,1935.4,4.13455412]
[1688170610604,0.77515,1935.6,1935.5,0.28671635]
[1688170610799,0.77515,1935.6,1935.5,0.59676635]
[1688170612204,4.02615,1935.6,1935.5,0.59676635]
[1688170612705,0.31004,1935.7,1935.5,3.85376635]
[1688170612895,0.31004,1935.7,1935.6,4.13452412]
[1688170614299,3.53604,1935.7,1935.6,0.31004]
[1688170615099,6.76884,1935.7,1935.3,7.49834]
[1688170615298,3.251,1935.4,1935.3,3.51788]
[1688170615504,3.56107,1935.4,1935.3,3.51788]
[1688170615704,3.56107,1935.4,1935.2,1.1954649]
[1688170615905,3.56107,1935.4,1935.3,0.31008]
[1688170619409,3.56107,1935.4,1935.2,0.4203049]
[1688170619605,3.56107,1935.4,1935.2,0.7303949]
[1688170619804,3.56107,1935.4,1935.2,0.31009]
[1688170620002,3.257,1935.3,1934.9,7.24781154]
[1688170620203,3.257,1935.3,1934.9,4.41325093]
[1688170620204,3.226,1935.0,1934.9,4.41325093]
[1688170620512,3.53612,1935.0,1934.9,4.41325093]
[1688170621407,3.53612,1935.0,1934.9,1.49216728]
[1688170621604,3.53612,1935.0,1934.9,1.20545093]
[1688170622610,3.53612,1935.0,1934.9,1.49216728]
[1688170623002,3.53612,1935.0,1934.9,1.56702492]
[1688170623712,3.53612,1935.0,1934.9,0.50504857]
[1688170623913,3.53612,1935.0,1934.9,0.08260918]
[1688170629309,3.53612,1935.0,1934.9,9.18e-06]
[1688170629515,3.53612,1935.0,1934.4,0.31022]
[1688170629724,3.257,1934.5,1934.4,0.31022]
[1688170629913,3.5672,1934.5,1934.4,0.31022]
[1688170630220,3.5672,1934.5,1934.3,0.00775414]
[1688170630415,3.56722,1934.4,1934.3,0.31799414]
[1688170630919,3.56722,1934.4,1934.3,0.72420565]
[1688170631119,3.56722,1934.4,1934.3,0.31799414]
[1688170632315,3.56722,1934.4,1934.3,0.00775414]
[1688170632713,3.56722,1934.4,1933.8,4.13871]
[1688170633010,3.5363,1933.9,1933.8,4.13871]
[1688170633822,3.226,1933.9,1933.8,4.42542635]
[1688170634021,3.226,1933.9,1933.8,4.84014748]
[1688170634226,3.5363,1933.9,1933.8,4.84014748]
[1688170634712,3.5363,1933.9,1933.8,4.55343113]
[1688170634915,3.5363,1933.9,1933.8,1.34563113]
[1688170635115,3.5363,1933.9,1933.8,1.63234748]
[1688170635727,3.5673,1933.9,1933.8,1.63234748]
[1688170636127,4.02674,1934.0,1933.8,4.84014748]
[1688170636821,4.02674,1934.0,1933.9,0.24963303]
[1688170637027,4.02674,1934.0,1933.9,0.55992303]
[1688170637323,4.02674,1934.0,1933.9,0.55990589]
[1688170640125,4.02674,1934.0,1933.9,0.66290589]
[1688170640328,0.93082,1934.2,1933.9,4.48739001]
[1688170640527,3.56125,1934.3,1934.0,3.59751635]
[1688170640727,0.77567,1934.4,1934.2,6.5678]
[1688170640935,0.77567,1934.4,1934.3,0.31023]
[1688170641117,0.31022,1934.5,1934.3,3.96980031]
[1688170641316,0.78334414,1934.6,1934.4,3.77528412]
[1688170641521,0.78334414,1934.6,1934.5,0.3102]
[1688170641720,0.78334414,1934.6,1934.5,0.69619189]
[1688170642221,4.03434414,1934.6,1934.5,0.40947554]
[1688170644519,4.00934414,1934.6,1934.5,0.40947554]
[1688170646231,4.00934414,1934.6,1934.5,0.69619189]
[1688170646433,3.25875414,1934.6,1934.5,0.79919189]
[1688170646627,3.56893414,1934.6,1934.5,0.79919189]
[1688170649129,3.56893414,1934.6,1934.5,0.40947554]
[1688170649431,3.57493414,1934.6,1934.5,0.40947554]
[1688170651934,3.57493414,1934.6,1934.5,0.09927554]
[1688170652136,3.57493414,1934.6,1934.3,0.31024]
[1688170652431,3.257,1934.4,1934.3,0.31024]
[1688170652635,3.56723,1934.4,1934.3,0.31024]
[1688170652933,3.56723,1934.4,1934.3,0.7774015]
[1688170653130,3.56723,1934.4,1934.3,3.9852015]
[1688170656842,3.226,1934.5,1934.4,0.103]
[1688170657136,0.93846414,1934.6,1934.5,0.41321]
[1688170657137,0.00775414,1934.6,1934.5,0.41321]
[1688170657329,0.00775414,1934.6,1934.5,7.16472635]
[1688170657531,0.77551,1934.9,1934.7,0.31018]
[1688170657740,0.77551,1934.9,1934.8,6.4648]
[1688170657937,0.77551,1934.9,1934.8,7.06167635]
[1688170658234,9.154,1935.2,1934.8,7.62916047]
[1688170658438,9.154,1935.2,1935.1,3.2078]
[1688170658439,4.1814,1935.2,1935.1,3.2078]
[1688170658732,4.18915194,1935.2,1935.1,4.37211047]
[1688170660638,4.18915194,1935.2,1935.1,4.08539412]
[1688170660932,6.00515194,1935.2,1935.0,0.31012]
[1688170661138,6.00515194,1935.2,1934.8,1.04162194]
[1688170661326,6.00515194,1935.2,1934.8,1.60910606]
[1688170661730,6.00515194,1935.2,1934.9,3.2078]
[1688170661925,6.00515194,1935.2,1935.0,0.59682635]
[1688170663640,6.00515194,1935.2,1934.8,1.04162194]
[1688170663641,5.065,1935.1,1934.8,1.04162194]
[1688170663841,5.042,1934.9,1934.8,1.04162194]
[1688170664045,5.35216,1934.9,1934.8,0.31791194]
[1688170664241,5.35216,1934.9,1934.8,0.60462829]
[1688170665131,5.35216,1934.9,1934.8,0.31791194]
[1688170665336,5.35216,1934.9,1934.8,0.00775194]
[1688170665733,8.55996,1934.9,1934.8,0.00775194]
[1688170666346,8.55996,1934.9,1934.4,0.31024]
[1688170666643,5.068,1934.5,1934.4,0.71768379]
[1688170666841,5.37823,1934.5,1934.4,0.46318757]
[1688170668234,5.37823,1934.5,1934.4,0.15294757]
[1688170668734,5.37823,1934.5,1934.3,0.00775414]
[1688170668949,5.068,1934.4,1934.3,0.00775414]
[1688170669244,5.37824,1934.4,1934.3,0.00775414]
[1688170670246,5.37824,1934.4,1934.3,0.31801414]
[1688170670436,5.37824,1934.4,1934.3,0.60473049]
[1688170671749,5.37824,1934.4,1934.3,0.31801414]
[1688170673150,5.37824,1934.4,1934.3,0.60473049]
[1688170673347,0.31024,1934.4,1934.3,0.60473049]
[1688170680250,5.05,1934.5,1934.3,0.70773049]
[1688170680447,0.7756,1934.5,1934.4,3.77528412]
[1688170680648,0.7756,1934.5,1934.4,4.08552412]
[1688170682455,10.93342,1934.9,1934.5,0.103]
[1688170682653,10.93342,1934.9,1934.7,0.31019]
[1688170682654,10.46807,1934.9,1934.7,0.31019]
[1688170682855,10.46807,1934.9,1934.7,0.59690635]
[1688170684156,10.46807,1934.9,1934.5,0.31022]
[1688170684157,5.068,1934.8,1934.5,0.31022]
[1688170684351,0.31019,1934.7,1934.6,0.09047368]
[1688170684658,0.31019,1934.7,1934.6,0.40068368]
[1688170687356,0.31019,1934.7,1934.6,0.09047368]
[1688170687857,0.31019,1934.7,1934.4,4.13839]
[1688170687858,5.37519,1934.7,1934.4,3.51803]
[1688170688050,5.37519,1934.7,1934.5,0.31022]
[1688170688051,5.042,1934.6,1934.5,0.31022]
[1688170688251,5.35221,1934.6,1934.5,0.40309959]
[1688170688447,5.35221,1934.6,1934.5,0.09287959]
[1688170689555,5.35221,1934.6,1934.5,0.40309959]
[1688170694955,5.35221,1934.6,1934.5,0.09287959]
[1688170695159,5.35221,1934.6,1934.3,0.00775414]
[1688170695356,5.068,1934.4,1934.3,0.00775414]
[1688170695554,5.37824,1934.4,1934.3,0.00775414]
[1688170696059,6.30269924,1934.4,1934.3,0.00775414]
[1688170698062,6.30269924,1934.4,1934.3,0.24023857]
[1688170698259,6.30269924,1934.4,1934.3,0.29447049]
[1688170698466,6.30269924,1934.4,1934.3,0.52693766]
[1688170698763,6.30269924,1934.4,1934.3,0.83719766]
[1688170698951,5.37824,1934.4,1934.3,0.83719766]
[1688170700457,5.36024,1934.4,1934.3,0.83719766]
[1688170700664,5.36024,1934.4,1934.3,0.74464169]
[1688170701064,5.36024,1934.4,1934.3,0.45792534]
[1688170701268,5.37824,1934.4,1934.3,0.45792534]
[1688170704771,5.37824,1934.4,1934.3,0.74464169]
[1688170705761,5.37824,1934.4,1934.3,0.45792534]
[1688170706965,5.37824,1934.4,1934.3,0.74464169]
[1688170709365,5.37824,1934.4,1934.3,0.45792534]
[1688170716976,5.37824,1934.4,1934.3,0.14766534]
[1688170717176,5.37824,1934.4,1934.3,0.25021907]
[1688170717369,5.37824,1934.4,1933.8,9.03957]
[1688170717370,5.036,1934.3,1933.8,9.03957]
[1688170717574,5.05,1933.9,1933.8,8.93657]
[1688170717878,5.36032,1933.9,1933.8,4.42548635]
[1688170718081,5.36032,1933.9,1933.8,1.21768635]
[1688170718585,5.36032,1933.9,1933.8,0.93097]
[1688170719076,5.35232,1933.9,1933.7,5.31877655]
[1688170719274,5.068,1933.8,1933.7,5.31877655]
[1688170719579,5.37834,1933.8,1933.7,0.31807655]
[1688170720882,3.54334,1933.8,1933.7,0.31807655]
[1688170722081,3.54334,1933.8,1933.7,0.6047929]
[1688170722082,0.31034,1933.8,1933.7,0.6047929]
[1688170722281,4.03585,1933.9,1933.7,0.6047929]
[1688170724882,4.03585,1933.9,1933.8,0.15136958]
[1688170725084,4.03585,1933.9,1933.8,0.46170958]
[1688170727787,4.03585,1933.9,1933.8,1.0291937]
[1688170728591,4.03585,1933.9,1933.8,0.46170958]
[1688170729690,4.03585,1933.9,1933.8,0.50355267]
[1688170730683,4.03585,1933.9,1933.8,0.19321267]
[1688170731077,7.24365,1933.9,1933.8,0.19321267]
[1688170731282,7.24365,1933.9,1933.8,0.27368493]
[1688170731485,7.24365,1933.9,1933.8,0.08048493]
[1688170731675,7.24365,1933.9,1933.8,0.23650719]
[1688170737785,7.65692767,1933.9,1933.8,0.23650719]
[1688170752103,7.65692767,1933.9,1933.7,0.00775655]
[1688170752299,4.39692767,1933.9,1933.8,0.27879288]
[1688170752496,7.65692767,1933.9,1933.8,0.27879288]
[1688170753603,7.65692767,1933.9,1933.8,0.15858316]
[1688170759508,7.65692767,1933.9,1933.7,0.00775655]
[1688170759717,3.233,1933.8,1933.7,0.00775655]
[1688170759912,3.54333,1933.8,1933.7,0.00775655]
[1688170763308,3.54333,1933.8,1933.7,0.7078229]
[1688170763515,0.31033,1933.8,1933.7,0.7078229]
[1688170763709,0.93875655,1934.0,1933.9,0.41331]
[1688170763915,0.00775655,1934.0,1933.9,4.47531047]
[1688170764128,0.3103,1934.1,1933.9,4.47531047]
[1688170765016,0.3103,1934.1,1934.0,0.103]
[1688170765324,0.3103,1934.1,1934.0,0.41331]
[1688170770221,3.5703,1934.1,1933.8,10.88549]
[1688170770433,3.259,1934.0,1933.9,0.31031]
[1688170770623,3.5693,1934.0,1933.9,0.31031]
[1688170770823,3.5693,1934.0,1933.9,0.59702635]
[1688170774225,3.5693,1934.0,1933.9,0.31031]
[1688170774634,3.5693,1934.0,1933.9,0.59702635]
[1688170777731,3.5693,1934.0,1933.9,3.80482635]
[1688170778625,3.26,1934.0,1933.9,3.80482635]
[1688170779631,3.26675595,1934.2,1934.1,0.103]
[1688170779830,4.16369,1934.6,1934.4,0.103]
[1688170780035,3.233,1934.6,1934.5,3.621]
[1688170780227,3.54318,1934.6,1934.5,4.47520047]
[1688170781637,3.233,1934.6,1934.5,4.47520047]
[1688170781827,0.00775374,1934.7,1934.5,7.73520047]
[1688170782136,0.31792374,1934.7,1934.6,0.103]
[1688170782335,0.31792374,1934.7,1934.6,0.41319]
[1688170785436,0.93038,1935.1,1934.6,6.93319]
[1688170785636,4.03531,1935.2,1935.1,0.31011]
[1688170785834,4.03531,1935.2,1935.1,3.80462635]
[1688170786037,0.77531,1935.2,1935.1,7.06462635]
[1688170786338,4.44621281,1935.2,1935.1,0.85420047]
[1688170786940,4.44621281,1935.2,1935.1,1.16431047]
[1688170787938,4.66329799,1935.2,1935.1,1.16431047]
[1688170789448,1.40429799,1935.2,1935.1,4.42431047]
[1688170792147,1.40429799,1935.2,1935.1,1.16431047]
[1688170792847,4.66429799,1935.2,1935.0,0.31788134]
[1688170793241,4.66429799,1935.2,1935.0,0.00775134]
[1688170793445,9.82529799,1935.2,1935.0,0.31787134]
[1688170793943,9.82529799,1935.2,1935.0,0.31788134]
[1688170795143,9.82529799,1935.2,1935.0,0.00775134]
[1688170795542,9.82529799,1935.2,1935.0,0.31788134]
[1688170795941,9.82529799,1935.2,1935.0,0.00775134]
[1688170796343,9.82529799,1935.2,1935.0,0.31788134]
[1688170796849,3.26,1935.1,1935.0,0.31788134]
[1688170797049,3.57012,1935.1,1935.0,0.31788134]
[1688170797350,3.7895781,1935.1,1935.0,0.00775134]
[1688170806055,3.67850033,1935.1,1935.0,0.00775134]
[1688170806458,6.88630033,1935.1,1935.0,0.00775134]
[1688170807654,7.81057687,1935.1,1935.0,0.00775134]
[1688170815357,3.67850033,1935.1,1935.0,0.60457769]
[1688170815657,3.67850033,1935.1,1935.0,0.70757769]
[1688170817664,0.10838033,1935.1,1935.0,3.96757769]
[1688170817961,0.31011,1935.2,1935.0,3.96757769]
[1688170818152,0.31011,1935.2,1935.1,7.03528412]
[1688170818357,0.31011,1935.2,1935.1,7.34539412]
[1688170818560,0.31011,1935.2,1935.1,4.08539412]
[1688170821057,0.3101,1935.2,1935.1,4.18839412]
[1688170823266,0.3101,1935.2,1935.1,7.43839412]
[1688170825266,3.5691,1935.2,1935.1,0.103]
[1688170825470,3.5691,1935.2,1935.1,0.41311]
[1688170825970,3.5691,1935.2,1935.1,0.103]
[1688170826471,3.5691,1935.2,1935.1,0.4131]
[1688170826865,3.5691,1935.2,1935.1,0.69981635]
[1688170827565,3.5691,1935.2,1935.1,0.4131]
[1688170827967,3.5691,1935.2,1935.1,0.103]
[1688170828366,3.5691,1935.2,1935.1,0.38971635]
[1688170828974,3.5691,1935.2,1935.0,0.00775134]
[1688170829163,3.259,1935.1,1935.0,0.00775134]
[1688170829367,3.56912,1935.1,1935.0,0.00775134]
[1688170831574,3.56912,1935.1,1935.0,0.60459769]
[1688170832173,3.56912,1935.1,1935.0,0.31788134]
[1688170832368,3.56912,1935.1,1935.0,0.00775134]
[1688170832869,3.67026178,1935.1,1935.0,0.00775134]
[1688170833881,3.67026178,1935.1,1935.0,0.31788134]
[1688170837378,3.67026178,1935.1,1935.0,0.00775134]
[1688170837577,3.67126178,1935.1,1935.0,0.00775134]
[1688170839284,4.08230428,1935.1,1935.0,0.00775134]
[1688170841982,4.19651552,1935.1,1935.0,0.00775134]
[1688170854381,9.13638082,1935.1,1934.6,0.103]
[1688170854686,3.259,1934.7,1934.6,0.103]
[1688170854888,3.78517099,1934.7,1934.6,0.103]
[1688170862980,3.78517099,1934.7,1934.5,5.97215334]
[1688170863191,3.78517099,1934.7,1934.5,5.19675334]
[1688170864582,3.78517099,1934.7,1934.5,5.61394565]